bitfinex/quotes_ETHUSD_20220202
["timestamp","ask_amount","ask_price","bid_price","bid_amount"]
[1643821822150,2.53799036,2693.9,2693.0,0.00533364]
[1643821822452,0.1832,2693.9,2693.0,0.00533364]
[1643821822948,0.1832,2693.9,2693.1,0.01280971]
[1643821823149,0.17541342,2693.2,2693.1,0.01280971]
[1643821823451,0.13819997,2694.0,2693.1,3.25]
[1643821823452,0.1855,2693.9,2693.1,3.25]
[1643821824448,0.13819997,2694.0,2693.5,0.74172879]
[1643821824449,0.17418637,2693.7,2693.5,0.74172879]
[1643821824652,0.1855,2694.2,2693.5,0.74172879]
[1643821824899,0.1855,2694.2,2693.3,0.1989311]
[1643821824900,6.75,2694.3,2693.3,0.19755806]
[1643821825100,6.75,2694.3,2693.3,0.01205806]
[1643821825702,6.7,2694.3,2693.7,0.00534077]
[1643821826502,2.34435524,2694.2,2693.7,0.00534077]
[1643821826702,2.34435524,2694.2,2692.9,0.1895]
[1643821826703,0.1855,2694.2,2692.9,0.1895]
[1643821826900,0.1855,2694.2,2692.9,0.004]
[1643821827100,0.1855,2694.2,2693.9,0.00534057]
[1643821827301,4.31276344,2694.0,2693.9,0.00534057]
[1643821827601,4.49826344,2694.0,2693.9,0.00534057]
[1643821828302,4.49826344,2694.0,2693.1,0.25]
[1643821828303,4.49826344,2694.0,2693.8,0.00516156]
[1643821828547,6.83549999,2693.9,2693.8,0.00516156]
[1643821828748,6.83549999,2693.9,2692.9,0.004]
[1643821828749,5.65,2693.8,2692.9,0.004]
[1643821828943,0.37095,2693.7,2692.9,0.004]
[1643821829144,0.99999999,2693.4,2692.9,0.254]
[1643821829344,0.1855,2693.3,2692.9,0.254]
[1643821829545,0.1855,2693.5,2692.9,0.254]
[1643821829847,0.1855,2693.5,2692.9,0.25]
[1643821830245,0.80736399,2693.4,2692.9,0.25]
[1643821830649,0.80736399,2693.4,2693.1,0.00243745]
[1643821831444,0.80736399,2693.4,2692.9,0.25]
[1643821831944,0.80736399,2693.4,2693.1,0.00517092]
[1643821832796,0.80736399,2693.4,2693.1,0.8781]
[1643821833002,0.80736399,2693.4,2693.1,0.88327092]
[1643821833997,0.80736399,2693.4,2693.1,0.8781]
[1643821834200,0.80736399,2693.4,2693.1,0.0048958]
[1643821834601,0.75736399,2693.4,2693.1,0.0048958]
[1643821835201,0.14360602,2693.0,2692.9,0.25]
[1643821835705,0.13425138,2693.0,2692.9,0.25]
[1643821836551,0.81029331,2693.0,2692.9,0.25]
[1643821837747,0.81029331,2693.0,2692.2,0.25]
[1643821837952,7.1417,2692.9,2692.8,0.00489604]
[1643821838151,8.23238222,2692.9,2692.8,0.00489604]
[1643821838750,8.23238222,2692.9,2692.3,0.87836]
[1643821838951,0.91523385,2692.4,2692.2,0.26973844]
[1643821839254,0.1855,2692.8,2692.2,0.26973844]
[1643821839255,0.90861062,2692.5,2692.2,0.26973844]
[1643821839994,0.18749649,2692.4,2692.2,0.25]
[1643821840196,0.18749649,2692.4,2692.2,0.25493399]
[1643821840395,7.1417,2692.9,2692.2,0.25493399]
[1643821840603,0.1857,2693.1,2692.3,1.57418067]
[1643821840798,36.79369409,2694.0,2692.3,1.75968067]
[1643821840799,0.1855,2693.4,2692.3,1.75968067]
[1643821841002,0.82931138,2693.2,2692.4,2.27153313]
[1643821841198,0.82931138,2693.2,2692.5,1.57418067]
[1643821841398,0.82931138,2693.2,2692.9,0.004]
[1643821842398,0.14180497,2693.1,2692.9,0.004]
[1643821845146,3.4373882,2693.0,2692.9,0.004]
[1643821846151,5.9373882,2693.0,2692.9,0.004]
[1643821846347,6.93738819,2693.0,2692.9,0.004]
[1643821846554,6.6305882,2693.0,2692.9,0.004]
[1643821847317,4.1305882,2693.0,2692.9,0.004]
[1643821847508,3.4373882,2693.0,2692.9,0.004]
[1643821847808,0.8373882,2693.0,2692.9,0.004]
[1643821848207,3.2373882,2693.0,2692.9,0.004]
[1643821849008,5.65,2693.0,2692.0,3.45592222]
[1643821849210,5.65,2693.0,2692.1,1.57431614]
[1643821849211,0.99999999,2692.8,2692.1,1.57431614]
[1643821849409,0.99999999,2692.8,2691.7,0.1855]
[1643821849608,0.99999999,2692.8,2691.5,0.44688225]
[1643821849609,0.1857,2692.7,2691.5,0.44688225]
[1643821849807,0.1857,2692.7,2692.4,0.00535199]
[1643821850007,6.64999999,2692.5,2692.0,6.317e-05]
[1643821850209,5.65,2692.3,2691.5,0.44688225]
[1643821850409,5.65,2692.3,2691.5,8.225e-05]
[1643821850410,0.1857,2692.2,2691.5,8.225e-05]
[1643821850809,0.99999999,2692.0,2691.5,8.225e-05]
[1643821851043,0.80339146,2691.9,2691.5,8.225e-05]
[1643821851645,0.20116805,2691.8,2691.5,8.225e-05]
[1643821854247,6.64999999,2691.6,2691.5,8.225e-05]
[1643821854816,7.91,2691.5,2690.1,0.1857]
[1643821855013,7.91,2691.5,2690.2,1.57515867]
[1643821855014,0.99999999,2691.3,2690.2,1.57515867]
[1643821855514,0.99999999,2691.3,2690.3,1.57515867]
[1643821855515,0.1857,2691.2,2690.3,1.57515867]
[1643821855715,0.1857,2691.2,2690.4,1.57515867]
[1643821855915,0.1857,2691.2,2689.8,0.1857]
[1643821856115,0.1857,2691.2,2689.9,1.57523053]
[1643821856316,0.17045581,2691.1,2690.0,0.1857]
[1643821856512,0.17045581,2691.1,2690.1,1.57523053]
[1643821856715,0.1857,2691.0,2690.1,1.57523053]
[1643821856916,0.1857,2691.0,2689.7,0.1857]
[1643821857114,0.1857,2691.0,2689.8,1.57527076]
[1643821857313,0.99999999,2690.8,2689.8,1.57527076]
[1643821857512,0.99999999,2690.8,2689.6,0.01272646]
[1643821857513,0.77960553,2689.9,2689.6,0.01272646]
[1643821857713,36.97939409,2690.7,2689.7,1.57547936]
[1643821857714,2.32542918,2690.6,2689.7,1.57547936]
[1643821857913,2.32542918,2690.6,2689.4,0.1857]
[1643821857914,2.4457,2690.5,2689.4,0.1857]
[1643821858112,2.4457,2690.5,2689.5,1.57553263]
[1643821858313,2.4457,2690.5,2689.6,1.57553263]
[1643821858543,0.68973933,2690.3,2689.7,1.57551196]
[1643821858744,0.857204,2690.3,2689.4,0.1857]
[1643821859647,0.857204,2690.3,2689.7,0.0053608]
[1643821859848,3.04832231,2689.8,2689.7,0.0053608]
[1643821860046,0.16746467,2690.3,2689.7,0.0053608]
[1643821860448,0.16746467,2690.3,2689.4,0.1857]
[1643821860649,0.16746467,2690.3,2689.6,0.00536089]
[1643821860847,0.19765647,2690.2,2689.6,0.00536089]
[1643821861048,0.20043876,2689.7,2689.6,0.00536089]
[1643821861647,0.20043876,2689.7,2689.3,0.1857]
[1643821861951,0.20043876,2689.7,2689.1,0.9471889]
[1643821861952,0.20043876,2689.7,2689.5,0.00536099]
[1643821862800,42.22914409,2689.6,2689.1,0.20734718]
[1643821863000,2.33059646,2689.5,2689.1,4.718e-05]
[1643821863199,5.68545,2689.4,2688.4,1.76196708]
[1643821863397,6.46785,2689.4,2688.5,1.576167]
[1643821863597,6.65375,2689.4,2688.5,1.576167]
[1643821863796,3.33059645,2689.3,2688.1,0.1859]
[1643821863996,3.33059645,2689.3,2688.2,1.57618048]
[1643821863997,0.18545,2689.2,2688.2,1.57618048]
[1643821864396,0.18545,2689.2,2688.8,0.0021105]
[1643821864796,0.87399332,2689.1,2688.8,0.0021105]
[1643821864996,3.7,2688.9,2688.8,0.0021105]
[1643821865196,3.7,2688.9,2688.1,0.1859]
[1643821865396,3.7,2688.9,2688.3,0.00844366]
[1643821865397,2.54302061,2688.8,2688.3,0.00844366]
[1643821865597,5.65,2688.6,2687.6,0.01244346]
[1643821865798,5.65,2688.6,2687.7,1.5763966]
[1643821865799,0.18545,2688.5,2687.7,1.5763966]
[1643821866077,0.18545,2688.5,2687.2,0.88]
[1643821866078,36.79369409,2688.4,2687.2,0.88]
[1643821866280,0.20045004,2687.4,2687.3,1.57656188]
[1643821866474,0.88292077,2688.3,2687.4,4.15]
[1643821866475,6.6828,2688.3,2687.4,4.15]
[1643821866673,6.6828,2688.3,2687.9,0.01250226]
[1643821868072,0.16098085,2688.2,2687.9,0.01250226]
[1643821868271,0.16098085,2688.2,2687.8,0.87983]
[1643821868471,0.72396846,2688.0,2687.8,0.87983]
[1643821869370,0.72396846,2688.0,2687.8,0.00536928]
[1643821870192,0.72396846,2688.0,2687.4,0.186]
[1643821870493,0.72396846,2688.0,2687.8,0.00536928]
[1643821871394,0.72396846,2688.0,2687.4,0.20748035]
[1643821871594,0.72396846,2688.0,2687.8,0.00536928]
[1643821871794,0.16098085,2688.2,2687.8,0.00536928]
[1643821872498,0.16098085,2688.2,2687.3,0.186]
[1643821872696,0.71881684,2688.0,2687.4,1.57647698]
[1643821872895,0.71881684,2688.0,2687.9,0.00536919]
[1643821873948,0.71881684,2688.0,2687.3,0.186]
[1643821874248,0.16098085,2688.2,2687.8,0.00536923]
[1643821874847,0.16098085,2688.2,2687.5,0.00162744]
[1643821875250,0.85362035,2687.9,2687.5,0.02310741]
[1643821875647,0.53243085,2688.2,2687.5,0.02310741]
[1643821876049,0.99999999,2688.1,2687.5,0.02310741]
[1643821876251,0.186,2688.0,2687.5,0.02310741]
[1643821876452,0.18545,2688.0,2687.7,0.00536933]
[1643821876651,0.186,2687.9,2687.7,0.00536933]
[1643821877052,0.186,2688.1,2687.7,0.00536933]
[1643821877306,0.16098085,2688.2,2687.5,0.00162744]
[1643821877307,0.34698085,2688.2,2687.5,0.00162744]
[1643821877507,0.16098085,2688.2,2687.5,0.00162744]
[1643821877711,0.7202907,2687.9,2687.7,0.00495148]
[1643821877906,0.16098085,2688.2,2687.7,0.00495148]
[1643821878510,0.16098085,2688.2,2687.8,0.01215769]
[1643821878710,0.16098085,2688.2,2687.9,0.632]
[1643821880110,0.7185395,2688.7,2687.9,0.63653773]
[1643821880111,0.00453657,2688.6,2687.9,0.63653773]
[1643821880314,0.00453657,2688.6,2687.9,0.45053773]
[1643821880916,0.89407402,2688.7,2687.9,0.446]
[1643821881145,0.89407402,2688.7,2687.8,0.01295861]
[1643821881146,0.17593849,2688.5,2688.1,0.0049554]
[1643821882146,0.17593849,2688.5,2687.8,0.00080092]
[1643821882348,0.37145,2688.4,2687.8,0.00080092]
[1643821882548,0.67145,2688.4,2687.8,0.00080092]
[1643821882747,6.7015,2688.3,2687.8,0.00080092]
[1643821882951,1.18544999,2688.2,2687.8,0.00080092]
[1643821883247,0.186,2688.1,2687.8,0.00080092]
[1643821883450,0.19814811,2688.0,2687.8,0.00080092]
[1643821883648,0.186,2687.9,2687.8,0.00080092]
[1643821884049,0.186,2687.9,2686.8,1.82911143]
[1643821884249,1.10187711,2688.0,2686.8,1.82911143]
[1643821884250,0.76077524,2687.5,2686.9,1.57668204]
[1643821884449,0.76077524,2687.5,2686.8,1.0927746]
[1643821884450,0.19814811,2688.0,2686.8,1.0927746]
[1643821884655,0.186,2687.9,2686.8,1.0927746]
[1643821884896,0.186,2687.9,2687.2,0.00536346]
[1643821885095,3.33605907,2687.9,2687.2,0.00536346]
[1643821885398,1.05652223,2687.8,2687.2,0.00536346]
[1643821885597,0.69304699,2687.3,2686.8,1.0927746]
[1643821885994,0.69304699,2687.3,2687.0,0.0214563]
[1643821886396,0.143276,2687.2,2687.0,0.0214563]
[1643821886994,0.143276,2687.2,2686.8,1.0927746]
[1643821887795,0.143276,2687.2,2686.9,1.57663569]
[1643821887995,0.143276,2687.2,2687.1,5.6673294]
[1643821888199,0.143276,2687.2,2687.0,0.186]
[1643821888398,0.143276,2687.2,2686.9,0.186]
[1643821889251,0.143276,2687.2,2687.1,0.00193783]
[1643821890449,4.34125,2688.1,2687.1,0.00193783]
[1643821891449,0.93075142,2687.7,2687.1,0.00193783]
[1643821892148,0.93075142,2687.7,2687.5,0.0053569]
[1643821892393,2.69318656,2687.6,2687.5,0.0053569]
[1643821893000,3.17863656,2687.6,2687.1,0.00193783]
[1643821893198,3.17863656,2687.6,2687.4,0.00535694]
[1643821893401,5.836,2687.5,2687.4,0.00535694]
[1643821893998,5.836,2687.5,2687.4,0.00632345]
[1643821894198,5.836,2687.5,2687.4,0.00096651]
[1643821894598,6.02145,2687.5,2687.4,0.00096651]
[1643821896751,0.486,2687.5,2687.4,0.00096651]
[1643821897350,0.3,2687.5,2687.4,0.00096651]
[1643821897750,0.19318656,2687.6,2687.4,0.00096651]
[1643821898850,0.18545,2687.5,2687.4,0.00096651]
[1643821899052,0.18545,2687.5,2687.4,0.00597213]
[1643821899352,0.18545,2687.5,2687.4,0.00500562]
[1643821899551,5.83545,2687.5,2687.4,0.00500562]
[1643821899996,4.15327655,2687.5,2687.4,0.00500562]
[1643821900197,0.18604,2687.5,2687.3,0.00096354]
[1643821900399,0.18604,2687.4,2687.3,0.0059692]
[1643821900599,2.23604,2687.4,2687.3,0.0059692]
[1643821900997,0.18604,2687.4,2687.3,0.0059692]
[1643821901397,0.18604,2687.4,2687.3,0.00096354]
[1643821903643,0.18604,2687.4,2687.3,1.57801131]
[1643821904245,0.18604,2687.4,2687.3,0.00096354]
[1643821904246,2.44604,2687.4,2687.3,0.00096354]
[1643821904446,5.16032714,2687.4,2687.3,0.00096354]
[1643821905044,4.92995279,2687.4,2687.3,0.00096354]
[1643821905247,10.92995278,2687.4,2687.3,0.00096354]
[1643821905646,11.37595278,2687.4,2687.3,0.00096354]
[1643821905845,2.26,2687.2,2687.0,0.00227195]
[1643821906045,4.97218277,2687.1,2686.9,1.57723806]
[1643821906246,5.78886146,2687.0,2686.9,1.57723806]
[1643821906449,5.97490146,2687.0,2686.9,1.57723806]
[1643821906646,6.27490146,2687.0,2686.9,1.57723806]
[1643821907898,43.06859555,2687.0,2686.9,1.57723806]
[1643821908898,38.10022781,2687.0,2686.9,1.57723806]
[1643821909300,1.11068265,2687.1,2686.9,1.57723806]
[1643821909507,0.17964745,2687.1,2686.9,1.57723806]
[1643821910301,0.17469038,2687.1,2686.9,1.57723806]
[1643821911049,0.17469038,2687.1,2687.0,0.186]
[1643821911250,0.17469038,2687.1,2687.0,1.76323806]
[1643821911451,0.17469038,2687.1,2687.0,1.57723806]
[1643821912455,2.61073038,2687.1,2687.0,1.57723806]
[1643821912652,2.61073038,2687.1,2686.3,0.186]
[1643821912653,2.55,2687.0,2686.3,0.186]
[1643821912853,7.53198753,2687.1,2686.4,0.00237815]
[1643821912854,2.94710921,2686.9,2686.4,0.00237815]
[1643821913053,2.58753403,2687.0,2686.4,0.00237815]
[1643821913254,0.18604,2686.9,2686.4,0.00237815]
[1643821913454,0.18604,2686.9,2686.1,0.84959348]
[1643821913455,0.78287724,2686.7,2686.2,0.00237815]
[1643821913655,0.78287724,2686.7,2686.5,0.00497778]
[1643821913856,2.73604,2686.6,2686.5,0.00497778]
[1643821914259,3.03604,2686.6,2686.5,0.00497778]
[1643821914459,3.19720467,2686.6,2686.5,0.00497778]
[1643821914655,3.19720467,2686.6,2686.2,0.00237815]
[1643821914894,3.19720467,2686.6,2686.4,0.00497787]
[1643821915396,0.64720467,2686.6,2686.4,0.00497787]
[1643821915595,0.46116467,2686.6,2686.4,0.00497787]
[1643821915795,0.16116467,2686.6,2686.4,0.00497787]
[1643821916195,0.16116467,2686.6,2686.4,0.00497792]
[1643821916595,3.9819,2687.0,2686.5,0.71945884]
[1643821916799,5.5695,2687.1,2686.6,0.186]
[1643821917394,5.5695,2687.1,2686.6,0.19117259]
[1643821917595,0.16796804,2686.7,2686.6,0.19117259]
[1643821917793,0.16796804,2686.7,2686.6,0.20335294]
[1643821917994,0.16796804,2686.7,2686.6,0.00517259]
[1643821918650,0.16796804,2686.7,2686.5,0.19107936]
[1643821918851,0.16796804,2686.7,2686.5,0.00507936]
[1643821919750,0.16796804,2686.7,2686.5,0.0050794]
[1643821920150,6.56529323,2687.1,2687.0,0.15739507]
[1643821920554,8.82529323,2687.1,2686.5,0.0050794]
[1643821920754,8.82529323,2687.1,2686.3,0.00237815]
[1643821920755,2.446,2687.0,2686.3,0.00237815]
[1643821920957,2.446,2687.0,2686.4,0.01912949]
[1643821920958,5.74054533,2686.9,2686.4,0.01912949]
[1643821921154,0.186,2686.8,2686.4,0.01912949]
[1643821921959,2.55293209,2686.8,2686.2,0.01455792]
[1643821922155,2.26,2686.7,2686.5,0.00470375]
[1643821922408,2.446,2686.7,2686.5,0.00470375]
[1643821922608,2.746,2686.7,2686.5,0.00470375]
[1643821922807,4.26462295,2686.6,2686.5,0.00470375]
[1643821923009,4.26462295,2686.6,2686.2,0.00237815]
[1643821923010,4.45062295,2686.6,2686.2,0.00237815]
[1643821923207,4.45062295,2686.6,2686.0,0.00237815]
[1643821923208,36.94120525,2686.5,2686.0,0.00237815]
[1643821923809,0.92048196,2686.1,2685.9,0.01270747]
[1643821924009,0.14750565,2686.0,2685.9,0.01270747]
[1643821924211,0.14750565,2686.0,2685.7,0.186]
[1643821924409,0.14750565,2686.0,2685.6,0.18837815]
[1643821924909,0.44750565,2686.0,2685.6,0.18837815]
[1643821925109,0.14750565,2686.0,2685.6,0.18837815]
[1643821925309,0.14750565,2686.0,2685.6,0.85197163]
[1643821925510,0.14750565,2686.0,2685.6,1.59016844]
[1643821925710,0.14750565,2686.0,2685.7,0.00520622]
[1643821926546,0.14750565,2686.0,2685.7,0.6687997]
[1643821926746,0.14750565,2686.0,2685.7,0.79752834]
[1643821927150,0.14750565,2686.0,2685.7,1.466328]
[1643821927550,0.14750565,2686.0,2685.7,0.66879966]
[1643821927948,0.14750565,2686.0,2685.7,0.00520618]
[1643821928148,0.14750565,2686.0,2685.8,0.186]
[1643821928347,0.14750565,2686.0,2685.7,0.66893932]
[1643821928548,0.14750565,2686.0,2685.7,0.00534584]
[1643821928549,1.07964225,2686.0,2685.7,0.00534584]
[1643821928947,1.37964225,2686.0,2685.7,0.00534584]
[1643821930403,1.37964225,2686.0,2685.3,0.66597163]
[1643821930404,0.17182037,2685.5,2685.3,0.66597163]
[1643821930602,0.17182037,2685.5,2685.4,4.336]
[1643821930802,0.17182037,2685.5,2685.4,4.37635807]
[1643821931001,0.3,2686.0,2685.4,4.37635807]
[1643821931303,2.30268502,2686.4,2685.4,4.37873622]
[1643821931304,0.3,2686.4,2685.4,4.37873622]
[1643821931500,36.97969409,2686.5,2685.4,5.0423297]
[1643821931501,37.09369409,2686.5,2685.4,5.0423297]
[1643821931701,36.79369409,2686.5,2685.4,5.0423297]
[1643821931902,36.79369409,2686.5,2685.6,0.00470234]
[1643821932303,0.19510784,2685.8,2685.7,3.36994491]
[1643821932701,0.75557903,2686.3,2685.7,4.93331748]
[1643821932901,0.75557903,2686.3,2685.8,1.56337257]
[1643821933103,1.05557903,2686.3,2685.8,1.56337257]
[1643821933551,1.05557903,2686.3,2685.9,1.56337257]
[1643821933552,2.48079869,2686.2,2685.9,1.56337257]
[1643821933756,0.20038915,2686.1,2686.0,1.56337257]
[1643821940103,0.20221708,2686.2,2686.0,1.56337257]
[1643821940401,0.20221708,2686.2,2686.1,1.56337257]
[1643821941450,0.20221708,2686.2,2686.1,1.76191158]
[1643821941652,0.20221708,2686.2,2686.1,1.56337257]
[1643821948854,0.20221708,2686.2,2686.1,0.25877762]
[1643821949052,0.20221708,2686.2,2685.6,0.01967482]
[1643821949053,3.0,2686.0,2685.6,0.01967482]
[1643821949251,3.61098562,2685.9,2685.6,0.01967482]
[1643821949451,3.35621561,2685.9,2685.6,0.01967482]
[1643821949651,1.16752744,2685.9,2685.6,0.01967482]
[1643821949851,0.15771888,2685.8,2685.4,0.04035807]
[1643821950353,0.15771888,2685.8,2685.3,0.04092649]
[1643821950354,0.81844792,2685.4,2685.3,0.04092649]
[1643821950764,1.11844792,2685.4,2685.3,0.04092649]
[1643821952056,4.81844792,2685.4,2685.3,0.04092649]
[1643821952904,3.40742393,2685.3,2685.2,0.00237815]
[1643821953111,3.40742393,2685.3,2685.0,0.186]
[1643821953310,0.15742393,2685.3,2685.0,0.186]
[1643821953506,0.15742393,2685.3,2685.2,0.0049195]
[1643821954703,0.15742393,2685.3,2685.0,0.00237815]
[1643821954704,0.15742393,2685.3,2685.1,0.00535273]
[1643821955305,0.45742393,2685.3,2685.1,0.00535273]
[1643821955507,1.38889673,2685.3,2685.1,0.00535273]
[1643821955809,1.38889673,2685.3,2684.8,0.00237815]
[1643821956060,1.38889673,2685.3,2685.1,0.00535277]
[1643821956360,1.08889673,2685.3,2685.1,0.00535277]
[1643821957758,0.1862,2685.6,2685.1,0.00535277]
[1643821957959,5.2456,2686.1,2685.1,0.19135277]
[1643821957960,5.4316,2686.1,2685.1,0.19135277]
[1643821958159,5.2456,2686.1,2685.1,0.19135277]
[1643821958361,5.2456,2686.1,2685.1,0.186]
[1643821958556,5.2456,2686.1,2685.1,0.19041746]
[1643821958758,0.83897965,2685.9,2685.4,0.70544986]
[1643821958960,0.17928532,2685.8,2685.3,0.186]
[1643821959159,0.17928532,2685.8,2685.3,0.18837815]
[1643821959560,0.17928532,2685.8,2685.5,0.00441712]
[1643821960210,0.92851863,2685.9,2685.5,0.00441712]
[1643821960411,0.92851863,2685.9,2685.3,0.00237815]
[1643821960813,0.92851863,2685.9,2685.5,0.00441712]
[1643821961612,0.87851863,2685.9,2685.5,0.00441712]
[1643821961913,0.87851863,2685.9,2685.6,0.00534717]
[1643821962111,1.17851863,2685.9,2685.6,0.00534717]
[1643821962715,4.6131058,2686.1,2685.6,0.00534717]
[1643821962915,0.186,2686.0,2685.3,0.00237815]
[1643821963118,0.186,2686.0,2685.6,0.00534712]
[1643821963317,1.1172218,2686.0,2685.6,0.00534712]
[1643821963568,0.17307092,2685.9,2685.6,0.00534712]
[1643821964163,0.17307092,2685.9,2685.0,0.01234893]
[1643821964164,0.70799523,2685.8,2685.0,0.01234893]
[1643821964363,1.00799523,2685.8,2685.6,0.00534712]
[1643821965362,1.00799523,2685.8,2685.0,0.01234893]
[1643821965566,0.19845032,2685.1,2685.0,0.01234893]
[1643821965763,1.00799523,2685.8,2685.0,0.01234893]
[1643821966168,1.00799523,2685.8,2685.0,0.01472708]
[1643821966365,1.00799523,2685.8,2684.9,1.77390625]
[1643821966366,1.93929913,2685.8,2684.9,1.07503985]
[1643821966762,1.93929913,2685.8,2685.3,0.00535259]
[1643821966963,0.17524963,2685.7,2685.3,0.00535259]
[1643821967606,0.17524963,2685.7,2684.9,0.17214063]
[1643821967806,0.17524963,2685.7,2684.9,0.15072708]
[1643821968008,0.17524963,2685.7,2685.4,0.00535249]
[1643821968414,3.7481,2686.2,2685.4,0.00535249]
[1643821968611,6.580314,2686.5,2685.4,0.00535249]
[1643821968612,0.186,2686.5,2685.5,0.186]
[1643821968814,5.90152968,2686.7,2685.5,0.186]
[1643821968815,0.186,2686.6,2685.5,0.186]
[1643821969010,0.19412518,2686.5,2685.6,1.35381193]
[1643821969212,0.78001465,2686.2,2685.7,0.00535221]
[1643821969413,0.16069531,2685.9,2685.8,1.35381193]
[1643821969611,0.186,2686.6,2685.8,1.35381193]
[1643821969812,0.21872623,2686.5,2685.8,1.35381193]
[1643821970413,0.21872623,2686.5,2685.9,1.35916417]
[1643821970611,0.21872623,2686.5,2686.0,1.35381193]
[1643821970612,1.08423587,2686.4,2686.0,1.35381193]
[1643821970814,0.86550964,2686.4,2686.1,1.35381193]
[1643821971062,0.20001541,2686.0,2685.9,0.00535224]
[1643821971261,0.20001541,2686.0,2685.9,1.33438512]
[1643821971660,0.20001541,2686.0,2685.9,1.33438517]
[1643821972460,0.20001541,2686.0,2685.9,1.32903288]
[1643821972661,0.20001541,2686.0,2685.6,1.32903288]
[1643821972862,5.1679,2686.7,2685.8,0.00474267]
[1643821973065,0.22915226,2686.6,2685.9,1.32903288]
[1643821973362,0.22915226,2686.6,2685.8,0.00474267]
[1643821973363,0.22915226,2686.6,2686.0,1.32903288]
[1643821973563,0.19074085,2686.8,2686.1,3.56366615]
[1643821973564,0.22915226,2686.5,2686.1,3.56366615]
[1643821973764,2.13853947,2687.2,2686.1,3.56366615]
[1643821973765,0.89096803,2687.3,2686.2,1.85571603]
[1643821973968,0.18554706,2686.9,2686.5,0.90169499]
[1643821974164,6.26403947,2687.8,2686.5,0.90169499]
[1643821974165,0.00474112,2686.8,2686.6,2.04171603]
[1643821974364,0.00474112,2686.8,2686.7,5.51871603]
[1643821974564,0.00474112,2686.8,2686.7,6.05571603]
[1643821975214,0.0047415,2686.9,2686.7,6.05571603]
[1643821975412,0.0047415,2686.9,2686.8,5.31871603]
[1643821975811,0.0047415,2686.9,2686.8,5.85571603]
[1643821975812,4.15e-05,2686.9,2686.8,5.85571603]
[1643821976016,4.15e-05,2686.9,2686.8,17.19316037]
[1643821976213,0.70496803,2688.4,2687.0,0.93026]
[1643821976214,0.89096803,2688.4,2687.0,0.93026]
[1643821976414,0.22382085,2688.3,2687.5,0.93018]
[1643821976624,0.22382085,2688.2,2687.6,0.537]
[1643821976815,0.22382085,2688.1,2687.6,0.537]
[1643821977014,1.11096639,2688.0,2686.8,0.186]
[1643821977213,1.11096639,2688.0,2686.9,0.537]
[1643821977214,6.11188888,2687.9,2686.9,0.537]
[1643821977413,0.22382085,2687.8,2686.9,0.537]
[1643821977622,0.40982085,2687.8,2686.9,0.537]
[1643821977813,0.22382085,2687.7,2686.9,0.537]
[1643821978214,5.6691,2687.9,2687.0,0.8265328]
[1643821978215,0.22382085,2687.6,2687.0,0.8265328]
[1643821978415,0.186,2687.9,2687.2,0.93042]
[1643821978661,0.22357512,2687.8,2687.3,0.537]
[1643821979059,0.22357512,2687.7,2687.3,0.537]
[1643821979262,0.22357512,2687.6,2687.3,0.537]
[1643821979460,0.70496803,2688.1,2687.3,0.537]
[1643821979461,0.22357512,2687.5,2687.3,0.537]
[1643821979663,0.19392936,2687.7,2687.3,0.537]
[1643821979860,0.22861002,2687.6,2687.3,0.537]
[1643821980063,0.00535009,2687.6,2687.3,0.537]
[1643821980463,0.15687985,2687.1,2686.9,0.186]
[1643821980669,0.00535009,2687.6,2686.6,0.537]
[1643821980862,0.00535009,2687.6,2686.2,2.92934997]
[1643821980863,0.186,2687.4,2686.3,2.5844]
[1643821981062,0.186,2687.4,2686.5,2.24490746]
[1643821981063,0.22848768,2687.3,2686.5,2.24490746]
[1643821981264,0.22848768,2687.3,2686.6,1.85121746]
[1643821981463,0.186,2687.5,2686.6,1.85121746]
[1643821981464,0.00535055,2687.1,2686.6,1.33906447]
[1643821981866,0.2013652,2687.1,2686.6,1.33906447]
[1643821982063,0.2013652,2687.1,2686.6,1.46767]
[1643821982314,0.19601465,2687.1,2686.6,0.537]
[1643821982511,0.00535059,2687.0,2686.6,0.537]
[1643821983012,0.91070171,2686.9,2686.6,0.537]
[1643821983412,0.19601465,2687.1,2686.6,0.537]
[1643821983711,0.00535054,2687.0,2686.6,0.537]
[1643821983913,0.22457982,2686.9,2686.4,0.00535184]
[1643821984312,0.186,2686.8,2686.4,0.00535184]
[1643821984519,0.22457982,2686.7,2686.0,0.01248347]
[1643821984912,0.22457982,2686.7,2686.1,1.33423524]
[1643821984913,0.18841912,2686.3,2686.1,1.33423524]
[1643821985113,0.18841912,2686.3,2686.1,0.02068644]
[1643821985514,0.186,2686.9,2686.1,0.02068644]
[1643821985714,0.22860132,2686.8,2686.0,0.94336347]
[1643821985912,0.22860132,2686.8,2686.1,1.3135358]
[1643821986151,0.186,2687.3,2686.1,1.31870699]
[1643821986152,0.8954259,2686.6,2686.1,1.31870699]
[1643821986357,0.8954259,2686.6,2686.1,0.00517119]
[1643821986953,0.8954259,2686.6,2686.0,0.01248347]
[1643821987256,0.8954259,2686.6,2686.2,0.00517106]
[1643821987653,0.17046476,2686.3,2686.2,0.00517106]
[1643821988255,0.186,2686.9,2685.8,0.92827435]
[1643821988456,45.98606589,2687.6,2686.1,0.00491468]
[1643821988457,0.22879722,2686.8,2686.1,0.00491468]
[1643821988656,0.41479722,2686.7,2686.1,0.00491468]
[1643821988856,0.00491299,2687.0,2686.1,0.00491468]
[1643821988857,0.186,2686.9,2686.1,0.00491468]
[1643821989058,0.186,2686.9,2686.5,0.01242558]
[1643821989258,0.17733213,2686.6,2686.5,0.01242558]
[1643821989456,0.17733213,2686.6,2686.4,0.537]
[1643821989657,0.17733213,2686.6,2686.4,0.54191448]
[1643821990110,0.17733213,2686.6,2686.4,0.00491448]
[1643821990608,0.17733213,2686.6,2686.3,0.95056829]
[1643821990811,0.17733213,2686.6,2686.4,0.00491448]
[1643821991810,0.17733213,2686.6,2685.9,0.186]
[1643821992110,0.17733213,2686.6,2686.4,0.00486108]
[1643821992111,0.90011581,2686.6,2686.4,0.00486108]
[1643821992809,1.20011581,2686.6,2686.4,0.00486108]
[1643821993110,1.20011581,2686.6,2686.0,0.85958286]
[1643821993310,1.20011581,2686.6,2686.4,0.00486108]
[1643821993556,0.17733213,2686.6,2686.4,0.00486108]
[1643821994155,0.17733213,2686.6,2686.0,0.87903009]
[1643821994156,0.17733213,2686.6,2686.0,0.85958286]
[1643821994558,1.05618012,2686.6,2686.4,0.00486108]
[1643821995358,1.05618012,2686.6,2686.0,0.85958286]
[1643821995661,1.05618012,2686.6,2686.4,0.00494956]